{"text_format":"3","workbook":"xlsx","n_sheets":13,"sheets":["Januar","Februar","März","April","Mai","Juni","Juli","August","September","Oktober","November","Dezember","Zusammenfassung Jahr bis heute"],"not_rendered":{"charts":1,"defined_names":13},"read":"whole","date_system":"1900"}

{"sheet":"Januar","index":0,"n_rows":9,"n_cols":14,"rows_kept":9,"merged":[[3,0,4,0],[6,0,7,0]]}
["JANUAR"]
["Onlineverkäufe",null,"Auktions-ID","Artikelbeschreibung","Kaufpreis","Verkaufspreis","Onlinegebühren","PayPal-Gebühren","Kreditkartengebühren","Versandkosten","Versandgebühren","Verkäufe Gewinn/Verlust","Versand Gewinn/Verlust","Gesamt Gewinn/Verlust"]
["Jahr",null,"TS001","Artikel 1",{"v":5,"d":"5.00 €"},{"v":4,"d":"4.00 €"},{"v":2,"d":"2.00 €"},{"v":1.5,"d":"1.50 €"},{"v":0,"d":"0.00 €"},{"v":4,"d":"4.00 €"},{"v":2,"d":"2.00 €"},{"$f":"IFERROR(UmsätzeJanuar[Verkaufspreis]-(UmsätzeJanuar[Kaufpreis]+UmsätzeJanuar[Onlinegebühren]+UmsätzeJanuar[PayPal-Gebühren]+UmsätzeJanuar[Kreditkartengebühren]),\"\")","v":{"v":-4.5,"d":"-4.50 €"}},{"$f":"UmsätzeJanuar[Versandkosten]-UmsätzeJanuar[Versandgebühren]","v":{"v":2,"d":"2.00 €"}},{"$f":"UmsätzeJanuar[Verkäufe Gewinn/Verlust]+UmsätzeJanuar[Versand Gewinn/Verlust]","v":{"v":-2.5,"d":"-2.50 €"}}]
[2012,null,"TP004","Artikel 2",{"v":2,"d":"2.00 €"},{"v":30,"d":"30.00 €"},{"v":0.5,"d":"0.50 €"},{"v":0.5,"d":"0.50 €"},null,{"v":4,"d":"4.00 €"},{"v":5.5,"d":"5.50 €"},{"$f":"IFERROR(UmsätzeJanuar[Verkaufspreis]-(UmsätzeJanuar[Kaufpreis]+UmsätzeJanuar[Onlinegebühren]+UmsätzeJanuar[PayPal-Gebühren]+UmsätzeJanuar[Kreditkartengebühren]),\"\")","v":{"v":27,"d":"27.00 €"}},{"$f":"UmsätzeJanuar[Versandkosten]-UmsätzeJanuar[Versandgebühren]","v":{"v":-1.5,"d":"-1.50 €"}},{"$f":"UmsätzeJanuar[Verkäufe Gewinn/Verlust]+UmsätzeJanuar[Versand Gewinn/Verlust]","v":{"v":25.5,"d":"25.50 €"}}]
[null,null,"RS99","Artikel 3",{"v":17,"d":"17.00 €"},{"v":23,"d":"23.00 €"},{"v":2,"d":"2.00 €"},null,{"v":2,"d":"2.00 €"},{"v":3,"d":"3.00 €"},{"v":2,"d":"2.00 €"},{"$f":"IFERROR(UmsätzeJanuar[Verkaufspreis]-(UmsätzeJanuar[Kaufpreis]+UmsätzeJanuar[Onlinegebühren]+UmsätzeJanuar[PayPal-Gebühren]+UmsätzeJanuar[Kreditkartengebühren]),\"\")","v":{"v":2,"d":"2.00 €"}},{"$f":"UmsätzeJanuar[Versandkosten]-UmsätzeJanuar[Versandgebühren]","v":{"v":1,"d":"1.00 €"}},{"$f":"UmsätzeJanuar[Verkäufe Gewinn/Verlust]+UmsätzeJanuar[Versand Gewinn/Verlust]","v":{"v":3,"d":"3.00 €"}}]
["Gesamt Gewinn/Verlust",null,"ST001","Artikel 4",{"v":120,"d":"120.00 €"},{"v":180,"d":"180.00 €"},{"v":2,"d":"2.00 €"},{"v":1.5,"d":"1.50 €"},null,{"v":3,"d":"3.00 €"},{"v":2,"d":"2.00 €"},{"$f":"IFERROR(UmsätzeJanuar[Verkaufspreis]-(UmsätzeJanuar[Kaufpreis]+UmsätzeJanuar[Onlinegebühren]+UmsätzeJanuar[PayPal-Gebühren]+UmsätzeJanuar[Kreditkartengebühren]),\"\")","v":{"v":56.5,"d":"56.50 €"}},{"$f":"UmsätzeJanuar[Versandkosten]-UmsätzeJanuar[Versandgebühren]","v":{"v":1,"d":"1.00 €"}},{"$f":"UmsätzeJanuar[Verkäufe Gewinn/Verlust]+UmsätzeJanuar[Versand Gewinn/Verlust]","v":{"v":57.5,"d":"57.50 €"}}]
[{"$f":"UmsätzeJanuar[[#Totals],[Gesamt Gewinn/Verlust]]","v":{"v":89,"d":"89.00 €"}},null,"ST001","Artikel 5",{"v":10,"d":"10.00 €"},{"v":12,"d":"12.00 €"},{"v":2,"d":"2.00 €"},{"v":1.5,"d":"1.50 €"},null,{"v":14,"d":"14.00 €"},{"v":7,"d":"7.00 €"},{"$f":"IFERROR(UmsätzeJanuar[Verkaufspreis]-(UmsätzeJanuar[Kaufpreis]+UmsätzeJanuar[Onlinegebühren]+UmsätzeJanuar[PayPal-Gebühren]+UmsätzeJanuar[Kreditkartengebühren]),\"\")","v":{"v":-1.5,"d":"-1.50 €"}},{"$f":"UmsätzeJanuar[Versandkosten]-UmsätzeJanuar[Versandgebühren]","v":{"v":7,"d":"7.00 €"}},{"$f":"UmsätzeJanuar[Verkäufe Gewinn/Verlust]+UmsätzeJanuar[Versand Gewinn/Verlust]","v":{"v":5.5,"d":"5.50 €"}}]
[null,null,"Summe",{"$f":"\"Verkaufte Artikel: \"&SUBTOTAL(103,UmsätzeJanuar[Artikelbeschreibung])","v":"Verkaufte Artikel: 5"},{"$f":"SUBTOTAL(109,UmsätzeJanuar[Kaufpreis])","v":{"v":154,"d":"154.00 €"}},{"$f":"SUBTOTAL(109,UmsätzeJanuar[Verkaufspreis])","v":{"v":249,"d":"249.00 €"}},{"$f":"SUBTOTAL(109,UmsätzeJanuar[Onlinegebühren])","v":{"v":8.5,"d":"8.50 €"}},{"$f":"SUBTOTAL(109,UmsätzeJanuar[PayPal-Gebühren])","v":{"v":5,"d":"5.00 €"}},{"$f":"SUBTOTAL(109,UmsätzeJanuar[Kreditkartengebühren])","v":{"v":2,"d":"2.00 €"}},{"$f":"SUBTOTAL(109,UmsätzeJanuar[Versandkosten])","v":{"v":28,"d":"28.00 €"}},{"$f":"SUBTOTAL(109,UmsätzeJanuar[Versandgebühren])","v":{"v":18.5,"d":"18.50 €"}},{"$f":"SUBTOTAL(109,UmsätzeJanuar[Verkäufe Gewinn/Verlust])","v":{"v":79.5,"d":"79.50 €"}},{"$f":"SUBTOTAL(109,UmsätzeJanuar[Versand Gewinn/Verlust])","v":{"v":9.5,"d":"9.50 €"}},{"$f":"SUBTOTAL(109,UmsätzeJanuar[Gesamt Gewinn/Verlust])","v":{"v":89,"d":"89.00 €"}}]
["Gewinn/Verlust Trend"]

{"sheet":"Februar","index":1,"n_rows":9,"n_cols":14,"rows_kept":9,"merged":[[3,0,4,0],[6,0,7,0]]}
["FEBRUAR"]
["Onlineverkäufe",null,"Auktions-ID","Artikelbeschreibung","Kaufpreis","Verkaufspreis","Onlinegebühren","PayPal-Gebühren","Kreditkartengebühren","Versandkosten","Versandgebühren","Verkäufe Gewinn/Verlust","Versand Gewinn/Verlust","Gesamt Gewinn/Verlust"]
["Jahr",null,"TS020","Artikel 1",{"v":10,"d":"10.00 €"},{"v":175,"d":"175.00 €"},{"v":3,"d":"3.00 €"},{"v":1.5,"d":"1.50 €"},{"v":0,"d":"0.00 €"},{"v":7,"d":"7.00 €"},{"v":5,"d":"5.00 €"},{"$f":"IFERROR(UmsätzeFebruar[Verkaufspreis]-(UmsätzeFebruar[Kaufpreis]+UmsätzeFebruar[Onlinegebühren]+UmsätzeFebruar[PayPal-Gebühren]+UmsätzeFebruar[Kreditkartengebühren]),\"\")","v":{"v":160.5,"d":"160.50 €"}},{"$f":"UmsätzeFebruar[Versandkosten]-UmsätzeFebruar[Versandgebühren]","v":{"v":2,"d":"2.00 €"}},{"$f":"UmsätzeFebruar[Verkäufe Gewinn/Verlust]+UmsätzeFebruar[Versand Gewinn/Verlust]","v":{"v":162.5,"d":"162.50 €"}}]
[{"$f":"UmsätzeJahr","v":2012},null,"TS021","Artikel 2",{"v":32,"d":"32.00 €"},{"v":100,"d":"100.00 €"},{"v":3,"d":"3.00 €"},null,{"v":3.2,"d":"3.20 €"},{"v":20,"d":"20.00 €"},{"v":13,"d":"13.00 €"},{"$f":"IFERROR(UmsätzeFebruar[Verkaufspreis]-(UmsätzeFebruar[Kaufpreis]+UmsätzeFebruar[Onlinegebühren]+UmsätzeFebruar[PayPal-Gebühren]+UmsätzeFebruar[Kreditkartengebühren]),\"\")","v":{"v":61.8,"d":"61.80 €"}},{"$f":"UmsätzeFebruar[Versandkosten]-UmsätzeFebruar[Versandgebühren]","v":{"v":7,"d":"7.00 €"}},{"$f":"UmsätzeFebruar[Verkäufe Gewinn/Verlust]+UmsätzeFebruar[Versand Gewinn/Verlust]","v":{"v":68.8,"d":"68.80 €"}}]
[null,null,"TS022","Artikel 3",{"v":3,"d":"3.00 €"},{"v":7,"d":"7.00 €"},{"v":2,"d":"2.00 €"},null,{"v":2,"d":"2.00 €"},{"v":0.5,"d":"0.50 €"},{"v":1.2,"d":"1.20 €"},{"$f":"IFERROR(UmsätzeFebruar[Verkaufspreis]-(UmsätzeFebruar[Kaufpreis]+UmsätzeFebruar[Onlinegebühren]+UmsätzeFebruar[PayPal-Gebühren]+UmsätzeFebruar[Kreditkartengebühren]),\"\")","v":{"v":0,"d":"0.00 €"}},{"$f":"UmsätzeFebruar[Versandkosten]-UmsätzeFebruar[Versandgebühren]","v":{"v":-0.7,"d":"-0.70 €"}},{"$f":"UmsätzeFebruar[Verkäufe Gewinn/Verlust]+UmsätzeFebruar[Versand Gewinn/Verlust]","v":{"v":-0.7,"d":"-0.70 €"}}]
["Gesamt Gewinn/Verlust",null,"TS023","Artikel 4",{"v":22,"d":"22.00 €"},{"v":18,"d":"18.00 €"},{"v":3,"d":"3.00 €"},{"v":1.5,"d":"1.50 €"},null,{"v":7,"d":"7.00 €"},{"v":10,"d":"10.00 €"},{"$f":"IFERROR(UmsätzeFebruar[Verkaufspreis]-(UmsätzeFebruar[Kaufpreis]+UmsätzeFebruar[Onlinegebühren]+UmsätzeFebruar[PayPal-Gebühren]+UmsätzeFebruar[Kreditkartengebühren]),\"\")","v":{"v":-8.5,"d":"-8.50 €"}},{"$f":"UmsätzeFebruar[Versandkosten]-UmsätzeFebruar[Versandgebühren]","v":{"v":-3,"d":"-3.00 €"}},{"$f":"UmsätzeFebruar[Verkäufe Gewinn/Verlust]+UmsätzeFebruar[Versand Gewinn/Verlust]","v":{"v":-11.5,"d":"-11.50 €"}}]
[{"$f":"UmsätzeFebruar[[#Totals],[Gesamt Gewinn/Verlust]]","v":{"v":224.60000000000002,"d":"224.60 €"}},null,"TS024","Artikel 5",{"v":10,"d":"10.00 €"},{"v":12,"d":"12.00 €"},{"v":2,"d":"2.00 €"},{"v":1.5,"d":"1.50 €"},null,{"v":14,"d":"14.00 €"},{"v":7,"d":"7.00 €"},{"$f":"IFERROR(UmsätzeFebruar[Verkaufspreis]-(UmsätzeFebruar[Kaufpreis]+UmsätzeFebruar[Onlinegebühren]+UmsätzeFebruar[PayPal-Gebühren]+UmsätzeFebruar[Kreditkartengebühren]),\"\")","v":{"v":-1.5,"d":"-1.50 €"}},{"$f":"UmsätzeFebruar[Versandkosten]-UmsätzeFebruar[Versandgebühren]","v":{"v":7,"d":"7.00 €"}},{"$f":"UmsätzeFebruar[Verkäufe Gewinn/Verlust]+UmsätzeFebruar[Versand Gewinn/Verlust]","v":{"v":5.5,"d":"5.50 €"}}]
[null,null,"Summe",{"$f":"\"Verkaufte Artikel: \"&SUBTOTAL(103,UmsätzeFebruar[Artikelbeschreibung])","v":"Verkaufte Artikel: 5"},{"$f":"SUBTOTAL(109,UmsätzeFebruar[Kaufpreis])","v":{"v":77,"d":"77.00 €"}},{"$f":"SUBTOTAL(109,UmsätzeFebruar[Verkaufspreis])","v":{"v":312,"d":"312.00 €"}},{"$f":"SUBTOTAL(109,UmsätzeFebruar[Onlinegebühren])","v":{"v":13,"d":"13.00 €"}},{"$f":"SUBTOTAL(109,UmsätzeFebruar[PayPal-Gebühren])","v":{"v":4.5,"d":"4.50 €"}},{"$f":"SUBTOTAL(109,UmsätzeFebruar[Kreditkartengebühren])","v":{"v":5.2,"d":"5.20 €"}},{"$f":"SUBTOTAL(109,UmsätzeFebruar[Versandkosten])","v":{"v":48.5,"d":"48.50 €"}},{"$f":"SUBTOTAL(109,UmsätzeFebruar[Versandgebühren])","v":{"v":36.2,"d":"36.20 €"}},{"$f":"SUBTOTAL(109,UmsätzeFebruar[Verkäufe Gewinn/Verlust])","v":{"v":212.3,"d":"212.30 €"}},{"$f":"SUBTOTAL(109,UmsätzeFebruar[Versand Gewinn/Verlust])","v":{"v":12.3,"d":"12.30 €"}},{"$f":"SUBTOTAL(109,UmsätzeFebruar[Gesamt Gewinn/Verlust])","v":{"v":224.60000000000002,"d":"224.60 €"}}]
["Gewinn/Verlust Trend"]

{"sheet":"März","index":2,"n_rows":9,"n_cols":14,"rows_kept":9,"merged":[[3,0,4,0],[6,0,7,0]]}
["MÄRZ"]
["Onlineverkäufe",null,"Auktions-ID","Artikelbeschreibung","Kaufpreis","Verkaufspreis","Onlinegebühren","PayPal-Gebühren","Kreditkartengebühren","Versandkosten","Versandgebühren","Verkäufe Gewinn/Verlust","Versand Gewinn/Verlust","Gesamt Gewinn/Verlust"]
["Jahr",{"$nulls":10},{"$f":"IFERROR(UmsätzeMärz[Verkaufspreis]-(UmsätzeMärz[Kaufpreis]+UmsätzeMärz[Onlinegebühren]+UmsätzeMärz[PayPal-Gebühren]+UmsätzeMärz[Kreditkartengebühren]),\"\")","v":{"v":0,"d":"0.00 €"}},{"$f":"UmsätzeMärz[Versandkosten]-UmsätzeMärz[Versandgebühren]","v":{"v":0,"d":"0.00 €"}},{"$f":"UmsätzeMärz[Verkäufe Gewinn/Verlust]+UmsätzeMärz[Versand Gewinn/Verlust]","v":{"v":0,"d":"0.00 €"}}]
[{"$f":"UmsätzeJahr","v":2012},{"$nulls":10},{"$f":"IFERROR(UmsätzeMärz[Verkaufspreis]-(UmsätzeMärz[Kaufpreis]+UmsätzeMärz[Onlinegebühren]+UmsätzeMärz[PayPal-Gebühren]+UmsätzeMärz[Kreditkartengebühren]),\"\")","v":{"v":0,"d":"0.00 €"}},{"$f":"UmsätzeMärz[Versandkosten]-UmsätzeMärz[Versandgebühren]","v":{"v":0,"d":"0.00 €"}},{"$f":"UmsätzeMärz[Verkäufe Gewinn/Verlust]+UmsätzeMärz[Versand Gewinn/Verlust]","v":{"v":0,"d":"0.00 €"}}]
[{"$nulls":11},{"$f":"IFERROR(UmsätzeMärz[Verkaufspreis]-(UmsätzeMärz[Kaufpreis]+UmsätzeMärz[Onlinegebühren]+UmsätzeMärz[PayPal-Gebühren]+UmsätzeMärz[Kreditkartengebühren]),\"\")","v":{"v":0,"d":"0.00 €"}},{"$f":"UmsätzeMärz[Versandkosten]-UmsätzeMärz[Versandgebühren]","v":{"v":0,"d":"0.00 €"}},{"$f":"UmsätzeMärz[Verkäufe Gewinn/Verlust]+UmsätzeMärz[Versand Gewinn/Verlust]","v":{"v":0,"d":"0.00 €"}}]
["Gesamt Gewinn/Verlust",{"$nulls":10},{"$f":"IFERROR(UmsätzeMärz[Verkaufspreis]-(UmsätzeMärz[Kaufpreis]+UmsätzeMärz[Onlinegebühren]+UmsätzeMärz[PayPal-Gebühren]+UmsätzeMärz[Kreditkartengebühren]),\"\")","v":{"v":0,"d":"0.00 €"}},{"$f":"UmsätzeMärz[Versandkosten]-UmsätzeMärz[Versandgebühren]","v":{"v":0,"d":"0.00 €"}},{"$f":"UmsätzeMärz[Verkäufe Gewinn/Verlust]+UmsätzeMärz[Versand Gewinn/Verlust]","v":{"v":0,"d":"0.00 €"}}]
[{"$f":"UmsätzeMärz[[#Totals],[Gesamt Gewinn/Verlust]]","v":{"v":0,"d":"0.00 €"}},{"$nulls":10},{"$f":"IFERROR(UmsätzeMärz[Verkaufspreis]-(UmsätzeMärz[Kaufpreis]+UmsätzeMärz[Onlinegebühren]+UmsätzeMärz[PayPal-Gebühren]+UmsätzeMärz[Kreditkartengebühren]),\"\")","v":{"v":0,"d":"0.00 €"}},{"$f":"UmsätzeMärz[Versandkosten]-UmsätzeMärz[Versandgebühren]","v":{"v":0,"d":"0.00 €"}},{"$f":"UmsätzeMärz[Verkäufe Gewinn/Verlust]+UmsätzeMärz[Versand Gewinn/Verlust]","v":{"v":0,"d":"0.00 €"}}]
[null,null,"Summe",{"$f":"\"Verkaufte Artikel: \"&SUBTOTAL(103,UmsätzeMärz[Artikelbeschreibung])","v":"Verkaufte Artikel: 0"},{"$f":"SUBTOTAL(109,UmsätzeMärz[Kaufpreis])","v":{"v":0,"d":"0.00 €"}},{"$f":"SUBTOTAL(109,UmsätzeMärz[Verkaufspreis])","v":{"v":0,"d":"0.00 €"}},{"$f":"SUBTOTAL(109,UmsätzeMärz[Onlinegebühren])","v":{"v":0,"d":"0.00 €"}},{"$f":"SUBTOTAL(109,UmsätzeMärz[PayPal-Gebühren])","v":{"v":0,"d":"0.00 €"}},{"$f":"SUBTOTAL(109,UmsätzeMärz[Kreditkartengebühren])","v":{"v":0,"d":"0.00 €"}},{"$f":"SUBTOTAL(109,UmsätzeMärz[Versandkosten])","v":{"v":0,"d":"0.00 €"}},{"$f":"SUBTOTAL(109,UmsätzeMärz[Versandgebühren])","v":{"v":0,"d":"0.00 €"}},{"$f":"SUBTOTAL(109,UmsätzeMärz[Verkäufe Gewinn/Verlust])","v":{"v":0,"d":"0.00 €"}},{"$f":"SUBTOTAL(109,UmsätzeMärz[Versand Gewinn/Verlust])","v":{"v":0,"d":"0.00 €"}},{"$f":"SUBTOTAL(109,UmsätzeMärz[Gesamt Gewinn/Verlust])","v":{"v":0,"d":"0.00 €"}}]
["Gewinn/Verlust Trend"]

{"sheet":"April","index":3,"n_rows":9,"n_cols":14,"rows_kept":9,"merged":[[3,0,4,0],[6,0,7,0]]}
["APRIL"]
["Onlineverkäufe",null,"Auktions-ID","Artikelbeschreibung","Kaufpreis","Verkaufspreis","Onlinegebühren","PayPal-Gebühren","Kreditkartengebühren","Versandkosten","Versandgebühren","Verkäufe Gewinn/Verlust","Versand Gewinn/Verlust","Gesamt Gewinn/Verlust"]
["Jahr",{"$nulls":11},{"$f":"UmsätzeApril[Versandkosten]-UmsätzeApril[Versandgebühren]","v":{"v":0,"d":"0.00 €"}},{"$f":"UmsätzeApril[Verkäufe Gewinn/Verlust]+UmsätzeApril[Versand Gewinn/Verlust]","v":{"v":0,"d":"0.00 €"}}]
[{"$f":"UmsätzeJahr","v":2012},{"$nulls":11},{"$f":"UmsätzeApril[Versandkosten]-UmsätzeApril[Versandgebühren]","v":{"v":0,"d":"0.00 €"}},{"$f":"UmsätzeApril[Verkäufe Gewinn/Verlust]+UmsätzeApril[Versand Gewinn/Verlust]","v":{"v":0,"d":"0.00 €"}}]
[{"$nulls":12},{"$f":"UmsätzeApril[Versandkosten]-UmsätzeApril[Versandgebühren]","v":{"v":0,"d":"0.00 €"}},{"$f":"UmsätzeApril[Verkäufe Gewinn/Verlust]+UmsätzeApril[Versand Gewinn/Verlust]","v":{"v":0,"d":"0.00 €"}}]
["Gesamt Gewinn/Verlust",{"$nulls":11},{"$f":"UmsätzeApril[Versandkosten]-UmsätzeApril[Versandgebühren]","v":{"v":0,"d":"0.00 €"}},{"$f":"UmsätzeApril[Verkäufe Gewinn/Verlust]+UmsätzeApril[Versand Gewinn/Verlust]","v":{"v":0,"d":"0.00 €"}}]
[{"$f":"UmsätzeApril[[#Totals],[Gesamt Gewinn/Verlust]]","v":{"v":0,"d":"0.00 €"}},{"$nulls":11},{"$f":"UmsätzeApril[Versandkosten]-UmsätzeApril[Versandgebühren]","v":{"v":0,"d":"0.00 €"}},{"$f":"UmsätzeApril[Verkäufe Gewinn/Verlust]+UmsätzeApril[Versand Gewinn/Verlust]","v":{"v":0,"d":"0.00 €"}}]
[null,null,"Gesamt",{"$f":"\"Verkaufte Artikel: \"&SUBTOTAL(103,UmsätzeApril[Artikelbeschreibung])","v":"Verkaufte Artikel: 0"},{"$f":"SUBTOTAL(109,UmsätzeApril[Kaufpreis])","v":{"v":0,"d":"0.00 €"}},{"$f":"SUBTOTAL(109,UmsätzeApril[Verkaufspreis])","v":{"v":0,"d":"0.00 €"}},{"$f":"SUBTOTAL(109,UmsätzeApril[Onlinegebühren])","v":{"v":0,"d":"0.00 €"}},{"$f":"SUBTOTAL(109,UmsätzeApril[PayPal-Gebühren])","v":{"v":0,"d":"0.00 €"}},{"$f":"SUBTOTAL(109,UmsätzeApril[Kreditkartengebühren])","v":{"v":0,"d":"0.00 €"}},{"$f":"SUBTOTAL(109,UmsätzeApril[Versandkosten])","v":{"v":0,"d":"0.00 €"}},{"$f":"SUBTOTAL(109,UmsätzeApril[Versandgebühren])","v":{"v":0,"d":"0.00 €"}},{"$f":"SUBTOTAL(109,UmsätzeApril[Verkäufe Gewinn/Verlust])","v":{"v":0,"d":"0.00 €"}},{"$f":"SUBTOTAL(109,UmsätzeApril[Versand Gewinn/Verlust])","v":{"v":0,"d":"0.00 €"}},{"$f":"SUBTOTAL(109,UmsätzeApril[Gesamt Gewinn/Verlust])","v":{"v":0,"d":"0.00 €"}}]
["Gewinn/Verlust Trend"]

{"sheet":"Mai","index":4,"n_rows":9,"n_cols":14,"rows_kept":9,"merged":[[3,0,4,0],[6,0,7,0]]}
["MAI"]
["Onlineverkäufe",null,"Auktions-ID","Artikelbeschreibung","Kaufpreis","Verkaufspreis","Onlinegebühren","PayPal-Gebühren","Kreditkartengebühren","Versandkosten","Versandgebühren","Verkäufe Gewinn/Verlust","Versand Gewinn/Verlust","Gesamt Gewinn/Verlust"]
["Jahr",{"$nulls":11},{"$f":"UmsätzeMai[Versandkosten]-UmsätzeMai[Versandgebühren]","v":{"v":0,"d":"0.00 €"}},{"$f":"UmsätzeMai[Verkäufe Gewinn/Verlust]+UmsätzeMai[Versand Gewinn/Verlust]","v":{"v":0,"d":"0.00 €"}}]
[{"$f":"UmsätzeJahr","v":2012},{"$nulls":11},{"$f":"UmsätzeMai[Versandkosten]-UmsätzeMai[Versandgebühren]","v":{"v":0,"d":"0.00 €"}},{"$f":"UmsätzeMai[Verkäufe Gewinn/Verlust]+UmsätzeMai[Versand Gewinn/Verlust]","v":{"v":0,"d":"0.00 €"}}]
[{"$nulls":12},{"$f":"UmsätzeMai[Versandkosten]-UmsätzeMai[Versandgebühren]","v":{"v":0,"d":"0.00 €"}},{"$f":"UmsätzeMai[Verkäufe Gewinn/Verlust]+UmsätzeMai[Versand Gewinn/Verlust]","v":{"v":0,"d":"0.00 €"}}]
["Gesamt Gewinn/Verlust",{"$nulls":11},{"$f":"UmsätzeMai[Versandkosten]-UmsätzeMai[Versandgebühren]","v":{"v":0,"d":"0.00 €"}},{"$f":"UmsätzeMai[Verkäufe Gewinn/Verlust]+UmsätzeMai[Versand Gewinn/Verlust]","v":{"v":0,"d":"0.00 €"}}]
[{"$f":"UmsätzeMai[[#Totals],[Gesamt Gewinn/Verlust]]","v":{"v":0,"d":"0.00 €"}},{"$nulls":11},{"$f":"UmsätzeMai[Versandkosten]-UmsätzeMai[Versandgebühren]","v":{"v":0,"d":"0.00 €"}},{"$f":"UmsätzeMai[Verkäufe Gewinn/Verlust]+UmsätzeMai[Versand Gewinn/Verlust]","v":{"v":0,"d":"0.00 €"}}]
[null,null,"Gesamt",{"$f":"\"Verkaufte Artikel: \"&SUBTOTAL(103,UmsätzeMai[Artikelbeschreibung])","v":"Verkaufte Artikel: 0"},{"$f":"SUBTOTAL(109,UmsätzeMai[Kaufpreis])","v":{"v":0,"d":"0.00 €"}},{"$f":"SUBTOTAL(109,UmsätzeMai[Verkaufspreis])","v":{"v":0,"d":"0.00 €"}},{"$f":"SUBTOTAL(109,UmsätzeMai[Onlinegebühren])","v":{"v":0,"d":"0.00 €"}},{"$f":"SUBTOTAL(109,UmsätzeMai[PayPal-Gebühren])","v":{"v":0,"d":"0.00 €"}},{"$f":"SUBTOTAL(109,UmsätzeMai[Kreditkartengebühren])","v":{"v":0,"d":"0.00 €"}},{"$f":"SUBTOTAL(109,UmsätzeMai[Versandkosten])","v":{"v":0,"d":"0.00 €"}},{"$f":"SUBTOTAL(109,UmsätzeMai[Versandgebühren])","v":{"v":0,"d":"0.00 €"}},{"$f":"SUBTOTAL(109,UmsätzeMai[Verkäufe Gewinn/Verlust])","v":{"v":0,"d":"0.00 €"}},{"$f":"SUBTOTAL(109,UmsätzeMai[Versand Gewinn/Verlust])","v":{"v":0,"d":"0.00 €"}},{"$f":"SUBTOTAL(109,UmsätzeMai[Gesamt Gewinn/Verlust])","v":{"v":0,"d":"0.00 €"}}]
["Gewinn/Verlust Trend"]

{"sheet":"Juni","index":5,"n_rows":9,"n_cols":14,"rows_kept":9,"merged":[[3,0,4,0],[6,0,7,0]]}
["JUNI"]
["Onlineverkäufe",null,"Auktions-ID","Artikelbeschreibung","Kaufpreis","Verkaufspreis","Onlinegebühren","PayPal-Gebühren","Kreditkartengebühren","Versandkosten","Versandgebühren","Verkäufe Gewinn/Verlust","Versand Gewinn/Verlust","Gesamt Gewinn/Verlust"]
["Jahr",{"$nulls":11},{"$f":"UmsätzeJuni[Versandkosten]-UmsätzeJuni[Versandgebühren]","v":{"v":0,"d":"0.00 €"}},{"$f":"UmsätzeJuni[Verkäufe Gewinn/Verlust]+UmsätzeJuni[Versand Gewinn/Verlust]","v":{"v":0,"d":"0.00 €"}}]
[{"$f":"UmsätzeJahr","v":2012},{"$nulls":11},{"$f":"UmsätzeJuni[Versandkosten]-UmsätzeJuni[Versandgebühren]","v":{"v":0,"d":"0.00 €"}},{"$f":"UmsätzeJuni[Verkäufe Gewinn/Verlust]+UmsätzeJuni[Versand Gewinn/Verlust]","v":{"v":0,"d":"0.00 €"}}]
[{"$nulls":12},{"$f":"UmsätzeJuni[Versandkosten]-UmsätzeJuni[Versandgebühren]","v":{"v":0,"d":"0.00 €"}},{"$f":"UmsätzeJuni[Verkäufe Gewinn/Verlust]+UmsätzeJuni[Versand Gewinn/Verlust]","v":{"v":0,"d":"0.00 €"}}]
["Gesamt Gewinn/Verlust",{"$nulls":11},{"$f":"UmsätzeJuni[Versandkosten]-UmsätzeJuni[Versandgebühren]","v":{"v":0,"d":"0.00 €"}},{"$f":"UmsätzeJuni[Verkäufe Gewinn/Verlust]+UmsätzeJuni[Versand Gewinn/Verlust]","v":{"v":0,"d":"0.00 €"}}]
[{"$f":"UmsätzeJuni[[#Totals],[Gesamt Gewinn/Verlust]]","v":{"v":0,"d":"0.00 €"}},{"$nulls":11},{"$f":"UmsätzeJuni[Versandkosten]-UmsätzeJuni[Versandgebühren]","v":{"v":0,"d":"0.00 €"}},{"$f":"UmsätzeJuni[Verkäufe Gewinn/Verlust]+UmsätzeJuni[Versand Gewinn/Verlust]","v":{"v":0,"d":"0.00 €"}}]
[null,null,"Summe",{"$f":"\"Verkaufte Artikel:\"&SUBTOTAL(103,UmsätzeJuni[Artikelbeschreibung])","v":"Verkaufte Artikel:0"},{"$f":"SUBTOTAL(109,UmsätzeJuni[Kaufpreis])","v":{"v":0,"d":"0.00 €"}},{"$f":"SUBTOTAL(109,UmsätzeJuni[Verkaufspreis])","v":{"v":0,"d":"0.00 €"}},{"$f":"SUBTOTAL(109,UmsätzeJuni[Onlinegebühren])","v":{"v":0,"d":"0.00 €"}},{"$f":"SUBTOTAL(109,UmsätzeJuni[PayPal-Gebühren])","v":{"v":0,"d":"0.00 €"}},{"$f":"SUBTOTAL(109,UmsätzeJuni[Kreditkartengebühren])","v":{"v":0,"d":"0.00 €"}},{"$f":"SUBTOTAL(109,UmsätzeJuni[Versandkosten])","v":{"v":0,"d":"0.00 €"}},{"$f":"SUBTOTAL(109,UmsätzeJuni[Versandgebühren])","v":{"v":0,"d":"0.00 €"}},{"$f":"SUBTOTAL(109,UmsätzeJuni[Verkäufe Gewinn/Verlust])","v":{"v":0,"d":"0.00 €"}},{"$f":"SUBTOTAL(109,UmsätzeJuni[Versand Gewinn/Verlust])","v":{"v":0,"d":"0.00 €"}},{"$f":"SUBTOTAL(109,UmsätzeJuni[Gesamt Gewinn/Verlust])","v":{"v":0,"d":"0.00 €"}}]
["Gewinn/Verlust Trend"]

{"sheet":"Juli","index":6,"n_rows":9,"n_cols":14,"rows_kept":9,"merged":[[3,0,4,0],[6,0,7,0]]}
["JULI"]
["Onlineverkäufe",null,"Auktions-ID","Artikelbeschreibung","Kaufpreis","Verkaufspreis","Onlinegebühren","PayPal-Gebühren","Kreditkartengebühren","Versandkosten","Versandgebühren","Verkäufe Gewinn/Verlust","Versand Gewinn/Verlust","Gesamt Gewinn/Verlust"]
["Jahr",{"$nulls":11},{"$f":"UmsätzeJuli[Versandkosten]-UmsätzeJuli[Versandgebühren]","v":{"v":0,"d":"0.00 €"}},{"$f":"UmsätzeJuli[Verkäufe Gewinn/Verlust]+UmsätzeJuli[Versand Gewinn/Verlust]","v":{"v":0,"d":"0.00 €"}}]
[{"$f":"UmsätzeJahr","v":2012},{"$nulls":11},{"$f":"UmsätzeJuli[Versandkosten]-UmsätzeJuli[Versandgebühren]","v":{"v":0,"d":"0.00 €"}},{"$f":"UmsätzeJuli[Verkäufe Gewinn/Verlust]+UmsätzeJuli[Versand Gewinn/Verlust]","v":{"v":0,"d":"0.00 €"}}]
[{"$nulls":12},{"$f":"UmsätzeJuli[Versandkosten]-UmsätzeJuli[Versandgebühren]","v":{"v":0,"d":"0.00 €"}},{"$f":"UmsätzeJuli[Verkäufe Gewinn/Verlust]+UmsätzeJuli[Versand Gewinn/Verlust]","v":{"v":0,"d":"0.00 €"}}]
["Gesamt Gewinn/Verlust",{"$nulls":11},{"$f":"UmsätzeJuli[Versandkosten]-UmsätzeJuli[Versandgebühren]","v":{"v":0,"d":"0.00 €"}},{"$f":"UmsätzeJuli[Verkäufe Gewinn/Verlust]+UmsätzeJuli[Versand Gewinn/Verlust]","v":{"v":0,"d":"0.00 €"}}]
[{"$f":"UmsätzeJuli[[#Totals],[Gesamt Gewinn/Verlust]]","v":{"v":0,"d":"0.00 €"}},{"$nulls":11},{"$f":"UmsätzeJuli[Versandkosten]-UmsätzeJuli[Versandgebühren]","v":{"v":0,"d":"0.00 €"}},{"$f":"UmsätzeJuli[Verkäufe Gewinn/Verlust]+UmsätzeJuli[Versand Gewinn/Verlust]","v":{"v":0,"d":"0.00 €"}}]
[null,null,"Summe",{"$f":"\"Verkaufte Artikel:\"&SUBTOTAL(103,UmsätzeJuli[Artikelbeschreibung])","v":"Verkaufte Artikel:0"},{"$f":"SUBTOTAL(109,UmsätzeJuli[Kaufpreis])","v":{"v":0,"d":"0.00 €"}},{"$f":"SUBTOTAL(109,UmsätzeJuli[Verkaufspreis])","v":{"v":0,"d":"0.00 €"}},{"$f":"SUBTOTAL(109,UmsätzeJuli[Onlinegebühren])","v":{"v":0,"d":"0.00 €"}},{"$f":"SUBTOTAL(109,UmsätzeJuli[PayPal-Gebühren])","v":{"v":0,"d":"0.00 €"}},{"$f":"SUBTOTAL(109,UmsätzeJuli[Kreditkartengebühren])","v":{"v":0,"d":"0.00 €"}},{"$f":"SUBTOTAL(109,UmsätzeJuli[Versandkosten])","v":{"v":0,"d":"0.00 €"}},{"$f":"SUBTOTAL(109,UmsätzeJuli[Versandgebühren])","v":{"v":0,"d":"0.00 €"}},{"$f":"SUBTOTAL(109,UmsätzeJuli[Verkäufe Gewinn/Verlust])","v":{"v":0,"d":"0.00 €"}},{"$f":"SUBTOTAL(109,UmsätzeJuli[Versand Gewinn/Verlust])","v":{"v":0,"d":"0.00 €"}},{"$f":"SUBTOTAL(109,UmsätzeJuli[Gesamt Gewinn/Verlust])","v":{"v":0,"d":"0.00 €"}}]
["Gewinn/Verlust Trend"]

{"sheet":"August","index":7,"n_rows":9,"n_cols":14,"rows_kept":9,"merged":[[3,0,4,0],[6,0,7,0]]}
["AUGUST"]
["Onlineverkäufe",null,"Auktions-ID","Artikelbeschreibung","Kaufpreis","Verkaufspreis","Onlinegebühren","PayPal-Gebühren","Kreditkartengebühren","Versandkosten","Versandgebühren","Verkäufe Gewinn/Verlust","Versand Gewinn/Verlust","Gesamt Gewinn/Verlust"]
["Jahr",{"$nulls":11},{"$f":"UmsätzeAugust[Versandkosten]-UmsätzeAugust[Versandgebühren]","v":{"v":0,"d":"0.00 €"}},{"$f":"UmsätzeAugust[Verkäufe Gewinn/Verlust]+UmsätzeAugust[Versand Gewinn/Verlust]","v":{"v":0,"d":"0.00 €"}}]
[{"$f":"UmsätzeJahr","v":2012},{"$nulls":11},{"$f":"UmsätzeAugust[Versandkosten]-UmsätzeAugust[Versandgebühren]","v":{"v":0,"d":"0.00 €"}},{"$f":"UmsätzeAugust[Verkäufe Gewinn/Verlust]+UmsätzeAugust[Versand Gewinn/Verlust]","v":{"v":0,"d":"0.00 €"}}]
[{"$nulls":12},{"$f":"UmsätzeAugust[Versandkosten]-UmsätzeAugust[Versandgebühren]","v":{"v":0,"d":"0.00 €"}},{"$f":"UmsätzeAugust[Verkäufe Gewinn/Verlust]+UmsätzeAugust[Versand Gewinn/Verlust]","v":{"v":0,"d":"0.00 €"}}]
["Gesamt Gewinn/Verlust",{"$nulls":11},{"$f":"UmsätzeAugust[Versandkosten]-UmsätzeAugust[Versandgebühren]","v":{"v":0,"d":"0.00 €"}},{"$f":"UmsätzeAugust[Verkäufe Gewinn/Verlust]+UmsätzeAugust[Versand Gewinn/Verlust]","v":{"v":0,"d":"0.00 €"}}]
[{"$f":"UmsätzeAugust[[#Totals],[Gesamt Gewinn/Verlust]]","v":{"v":0,"d":"0.00 €"}},{"$nulls":11},{"$f":"UmsätzeAugust[Versandkosten]-UmsätzeAugust[Versandgebühren]","v":{"v":0,"d":"0.00 €"}},{"$f":"UmsätzeAugust[Verkäufe Gewinn/Verlust]+UmsätzeAugust[Versand Gewinn/Verlust]","v":{"v":0,"d":"0.00 €"}}]
[null,null,"Summe",{"$f":"\"Verkaufte Artikel:\"&SUBTOTAL(103,UmsätzeAugust[Artikelbeschreibung])","v":"Verkaufte Artikel:0"},{"$f":"SUBTOTAL(109,UmsätzeAugust[Kaufpreis])","v":{"v":0,"d":"0.00 €"}},{"$f":"SUBTOTAL(109,UmsätzeAugust[Verkaufspreis])","v":{"v":0,"d":"0.00 €"}},{"$f":"SUBTOTAL(109,UmsätzeAugust[Onlinegebühren])","v":{"v":0,"d":"0.00 €"}},{"$f":"SUBTOTAL(109,UmsätzeAugust[PayPal-Gebühren])","v":{"v":0,"d":"0.00 €"}},{"$f":"SUBTOTAL(109,UmsätzeAugust[Kreditkartengebühren])","v":{"v":0,"d":"0.00 €"}},{"$f":"SUBTOTAL(109,UmsätzeAugust[Versandkosten])","v":{"v":0,"d":"0.00 €"}},{"$f":"SUBTOTAL(109,UmsätzeAugust[Versandgebühren])","v":{"v":0,"d":"0.00 €"}},{"$f":"SUBTOTAL(109,UmsätzeAugust[Verkäufe Gewinn/Verlust])","v":{"v":0,"d":"0.00 €"}},{"$f":"SUBTOTAL(109,UmsätzeAugust[Versand Gewinn/Verlust])","v":{"v":0,"d":"0.00 €"}},{"$f":"SUBTOTAL(109,UmsätzeAugust[Gesamt Gewinn/Verlust])","v":{"v":0,"d":"0.00 €"}}]
["Gewinn/Verlust Trend"]

{"sheet":"September","index":8,"n_rows":9,"n_cols":14,"rows_kept":9,"merged":[[3,0,4,0],[6,0,7,0]]}
["SEPTEMBER"]
["Onlineverkäufe",null,"Auktions-ID","Artikelbeschreibung","Kaufpreis","Verkaufspreis","Onlinegebühren","PayPal-Gebühren","Kreditkartengebühren","Versandkosten","Versandgebühren","Verkäufe Gewinn/Verlust","Versand Gewinn/Verlust","Gesamt Gewinn/Verlust"]
["Jahr",{"$nulls":11},{"$f":"UmsätzeSeptember[Versandkosten]-UmsätzeSeptember[Versandgebühren]","v":{"v":0,"d":"0.00 €"}},{"$f":"UmsätzeSeptember[Verkäufe Gewinn/Verlust]+UmsätzeSeptember[Versand Gewinn/Verlust]","v":{"v":0,"d":"0.00 €"}}]
[{"$f":"UmsätzeJahr","v":2012},{"$nulls":11},{"$f":"UmsätzeSeptember[Versandkosten]-UmsätzeSeptember[Versandgebühren]","v":{"v":0,"d":"0.00 €"}},{"$f":"UmsätzeSeptember[Verkäufe Gewinn/Verlust]+UmsätzeSeptember[Versand Gewinn/Verlust]","v":{"v":0,"d":"0.00 €"}}]
[{"$nulls":12},{"$f":"UmsätzeSeptember[Versandkosten]-UmsätzeSeptember[Versandgebühren]","v":{"v":0,"d":"0.00 €"}},{"$f":"UmsätzeSeptember[Verkäufe Gewinn/Verlust]+UmsätzeSeptember[Versand Gewinn/Verlust]","v":{"v":0,"d":"0.00 €"}}]
["Gesamt Gewinn/Verlust",{"$nulls":11},{"$f":"UmsätzeSeptember[Versandkosten]-UmsätzeSeptember[Versandgebühren]","v":{"v":0,"d":"0.00 €"}},{"$f":"UmsätzeSeptember[Verkäufe Gewinn/Verlust]+UmsätzeSeptember[Versand Gewinn/Verlust]","v":{"v":0,"d":"0.00 €"}}]
[{"$f":"UmsätzeSeptember[[#Totals],[Gesamt Gewinn/Verlust]]","v":{"v":0,"d":"0.00 €"}},{"$nulls":11},{"$f":"UmsätzeSeptember[Versandkosten]-UmsätzeSeptember[Versandgebühren]","v":{"v":0,"d":"0.00 €"}},{"$f":"UmsätzeSeptember[Verkäufe Gewinn/Verlust]+UmsätzeSeptember[Versand Gewinn/Verlust]","v":{"v":0,"d":"0.00 €"}}]
[null,null,"Summe",{"$f":"\"Verkaufte Artikel: \"&SUBTOTAL(103,UmsätzeSeptember[Artikelbeschreibung])","v":"Verkaufte Artikel: 0"},{"$f":"SUBTOTAL(109,UmsätzeSeptember[Kaufpreis])","v":{"v":0,"d":"0.00 €"}},{"$f":"SUBTOTAL(109,UmsätzeSeptember[Verkaufspreis])","v":{"v":0,"d":"0.00 €"}},{"$f":"SUBTOTAL(109,UmsätzeSeptember[Onlinegebühren])","v":{"v":0,"d":"0.00 €"}},{"$f":"SUBTOTAL(109,UmsätzeSeptember[PayPal-Gebühren])","v":{"v":0,"d":"0.00 €"}},{"$f":"SUBTOTAL(109,UmsätzeSeptember[Kreditkartengebühren])","v":{"v":0,"d":"0.00 €"}},{"$f":"SUBTOTAL(109,UmsätzeSeptember[Versandkosten])","v":{"v":0,"d":"0.00 €"}},{"$f":"SUBTOTAL(109,UmsätzeSeptember[Versandgebühren])","v":{"v":0,"d":"0.00 €"}},{"$f":"SUBTOTAL(109,UmsätzeSeptember[Verkäufe Gewinn/Verlust])","v":{"v":0,"d":"0.00 €"}},{"$f":"SUBTOTAL(109,UmsätzeSeptember[Versand Gewinn/Verlust])","v":{"v":0,"d":"0.00 €"}},{"$f":"SUBTOTAL(109,UmsätzeSeptember[Gesamt Gewinn/Verlust])","v":{"v":0,"d":"0.00 €"}}]
["Gewinn/Verlust Trend"]

{"sheet":"Oktober","index":9,"n_rows":9,"n_cols":14,"rows_kept":9,"merged":[[3,0,4,0],[6,0,7,0]]}
["OKTOBER"]
["Onlineverkäufe",null,"Auktions-ID","Artikelbeschreibung","Kaufpreis","Verkaufspreis","Onlinegebühren","PayPal-Gebühren","Kreditkartengebühren","Versandkosten","Versandgebühren","Verkäufe Gewinn/Verlust","Versand Gewinn/Verlust","Gesamt Gewinn/Verlust"]
["Jahr",{"$nulls":11},{"$f":"UmsätzeOktober[Versandkosten]-UmsätzeOktober[Versandgebühren]","v":{"v":0,"d":"0.00 €"}},{"$f":"UmsätzeOktober[Verkäufe Gewinn/Verlust]+UmsätzeOktober[Versand Gewinn/Verlust]","v":{"v":0,"d":"0.00 €"}}]
[{"$f":"UmsätzeJahr","v":2012},{"$nulls":11},{"$f":"UmsätzeOktober[Versandkosten]-UmsätzeOktober[Versandgebühren]","v":{"v":0,"d":"0.00 €"}},{"$f":"UmsätzeOktober[Verkäufe Gewinn/Verlust]+UmsätzeOktober[Versand Gewinn/Verlust]","v":{"v":0,"d":"0.00 €"}}]
[{"$nulls":12},{"$f":"UmsätzeOktober[Versandkosten]-UmsätzeOktober[Versandgebühren]","v":{"v":0,"d":"0.00 €"}},{"$f":"UmsätzeOktober[Verkäufe Gewinn/Verlust]+UmsätzeOktober[Versand Gewinn/Verlust]","v":{"v":0,"d":"0.00 €"}}]
["Gesamt Gewinn/Verlust",{"$nulls":11},{"$f":"UmsätzeOktober[Versandkosten]-UmsätzeOktober[Versandgebühren]","v":{"v":0,"d":"0.00 €"}},{"$f":"UmsätzeOktober[Verkäufe Gewinn/Verlust]+UmsätzeOktober[Versand Gewinn/Verlust]","v":{"v":0,"d":"0.00 €"}}]
[{"$f":"UmsätzeOktober[[#Totals],[Gesamt Gewinn/Verlust]]","v":{"v":0,"d":"0.00 €"}},{"$nulls":11},{"$f":"UmsätzeOktober[Versandkosten]-UmsätzeOktober[Versandgebühren]","v":{"v":0,"d":"0.00 €"}},{"$f":"UmsätzeOktober[Verkäufe Gewinn/Verlust]+UmsätzeOktober[Versand Gewinn/Verlust]","v":{"v":0,"d":"0.00 €"}}]
[null,null,"Summe",{"$f":"\"Verkaufte Artikel: \"&SUBTOTAL(103,UmsätzeOktober[Artikelbeschreibung])","v":"Verkaufte Artikel: 0"},{"$f":"SUBTOTAL(109,UmsätzeOktober[Kaufpreis])","v":{"v":0,"d":"0.00 €"}},{"$f":"SUBTOTAL(109,UmsätzeOktober[Verkaufspreis])","v":{"v":0,"d":"0.00 €"}},{"$f":"SUBTOTAL(109,UmsätzeOktober[Onlinegebühren])","v":{"v":0,"d":"0.00 €"}},{"$f":"SUBTOTAL(109,UmsätzeOktober[PayPal-Gebühren])","v":{"v":0,"d":"0.00 €"}},{"$f":"SUBTOTAL(109,UmsätzeOktober[Kreditkartengebühren])","v":{"v":0,"d":"0.00 €"}},{"$f":"SUBTOTAL(109,UmsätzeOktober[Versandkosten])","v":{"v":0,"d":"0.00 €"}},{"$f":"SUBTOTAL(109,UmsätzeOktober[Versandgebühren])","v":{"v":0,"d":"0.00 €"}},{"$f":"SUBTOTAL(109,UmsätzeOktober[Verkäufe Gewinn/Verlust])","v":{"v":0,"d":"0.00 €"}},{"$f":"SUBTOTAL(109,UmsätzeOktober[Versand Gewinn/Verlust])","v":{"v":0,"d":"0.00 €"}},{"$f":"SUBTOTAL(109,UmsätzeOktober[Gesamt Gewinn/Verlust])","v":{"v":0,"d":"0.00 €"}}]
["Gewinn/Verlust Trend"]

{"sheet":"November","index":10,"n_rows":9,"n_cols":14,"rows_kept":9,"merged":[[3,0,4,0],[6,0,7,0]]}
["NOVEMBER"]
["Onlineverkäufe",null,"Auktions-ID","Artikelbeschreibung","Kaufpreis","Verkaufspreis","Onlinegebühren","PayPal-Gebühren","Kreditkartengebühren","Versandkosten","Versandgebühren","Verkäufe Gewinn/Verlust","Versand Gewinn/Verlust","Gesamt Gewinn/Verlust"]
["Jahr",{"$nulls":11},{"$f":"UmsätzeNovember[Versandkosten]-UmsätzeNovember[Versandgebühren]","v":{"v":0,"d":"0.00 €"}},{"$f":"UmsätzeNovember[Verkäufe Gewinn/Verlust]+UmsätzeNovember[Versand Gewinn/Verlust]","v":{"v":0,"d":"0.00 €"}}]
[{"$f":"UmsätzeJahr","v":2012},{"$nulls":11},{"$f":"UmsätzeNovember[Versandkosten]-UmsätzeNovember[Versandgebühren]","v":{"v":0,"d":"0.00 €"}},{"$f":"UmsätzeNovember[Verkäufe Gewinn/Verlust]+UmsätzeNovember[Versand Gewinn/Verlust]","v":{"v":0,"d":"0.00 €"}}]
[{"$nulls":12},{"$f":"UmsätzeNovember[Versandkosten]-UmsätzeNovember[Versandgebühren]","v":{"v":0,"d":"0.00 €"}},{"$f":"UmsätzeNovember[Verkäufe Gewinn/Verlust]+UmsätzeNovember[Versand Gewinn/Verlust]","v":{"v":0,"d":"0.00 €"}}]
["Gesamt Gewinn/Verlust",{"$nulls":11},{"$f":"UmsätzeNovember[Versandkosten]-UmsätzeNovember[Versandgebühren]","v":{"v":0,"d":"0.00 €"}},{"$f":"UmsätzeNovember[Verkäufe Gewinn/Verlust]+UmsätzeNovember[Versand Gewinn/Verlust]","v":{"v":0,"d":"0.00 €"}}]
[{"$f":"UmsätzeNovember[[#Totals],[Gesamt Gewinn/Verlust]]","v":{"v":0,"d":"0.00 €"}},{"$nulls":11},{"$f":"UmsätzeNovember[Versandkosten]-UmsätzeNovember[Versandgebühren]","v":{"v":0,"d":"0.00 €"}},{"$f":"UmsätzeNovember[Verkäufe Gewinn/Verlust]+UmsätzeNovember[Versand Gewinn/Verlust]","v":{"v":0,"d":"0.00 €"}}]
[null,null,"Summe",{"$f":"\"Verkaufte Artikel: \"&SUBTOTAL(103,UmsätzeNovember[Artikelbeschreibung])","v":"Verkaufte Artikel: 0"},{"$f":"SUBTOTAL(109,UmsätzeNovember[Kaufpreis])","v":{"v":0,"d":"0.00 €"}},{"$f":"SUBTOTAL(109,UmsätzeNovember[Verkaufspreis])","v":{"v":0,"d":"0.00 €"}},{"$f":"SUBTOTAL(109,UmsätzeNovember[Onlinegebühren])","v":{"v":0,"d":"0.00 €"}},{"$f":"SUBTOTAL(109,UmsätzeNovember[PayPal-Gebühren])","v":{"v":0,"d":"0.00 €"}},{"$f":"SUBTOTAL(109,UmsätzeNovember[Kreditkartengebühren])","v":{"v":0,"d":"0.00 €"}},{"$f":"SUBTOTAL(109,UmsätzeNovember[Versandkosten])","v":{"v":0,"d":"0.00 €"}},{"$f":"SUBTOTAL(109,UmsätzeNovember[Versandgebühren])","v":{"v":0,"d":"0.00 €"}},{"$f":"SUBTOTAL(109,UmsätzeNovember[Verkäufe Gewinn/Verlust])","v":{"v":0,"d":"0.00 €"}},{"$f":"SUBTOTAL(109,UmsätzeNovember[Versand Gewinn/Verlust])","v":{"v":0,"d":"0.00 €"}},{"$f":"SUBTOTAL(109,UmsätzeNovember[Gesamt Gewinn/Verlust])","v":{"v":0,"d":"0.00 €"}}]
["Gewinn/Verlust Trend"]

{"sheet":"Dezember","index":11,"n_rows":9,"n_cols":14,"rows_kept":9,"merged":[[3,0,4,0],[6,0,7,0]]}
["DEZEMBER"]
["Onlineverkäufe",null,"Auktions-ID","Artikelbeschreibung","Kaufpreis","Verkaufspreis","Onlinegebühren","PayPal-Gebühren","Kreditkartengebühren","Versandkosten","Versandgebühren","Verkäufe Gewinn/Verlust","Versand Gewinn/Verlust","Gesamt Gewinn/Verlust"]
["Jahr",{"$nulls":11},{"$f":"UmsätzeDezember[Versandkosten]-UmsätzeDezember[Versandgebühren]","v":{"v":0,"d":"0.00 €"}},{"$f":"UmsätzeDezember[Verkäufe Gewinn/Verlust]+UmsätzeDezember[Versand Gewinn/Verlust]","v":{"v":0,"d":"0.00 €"}}]
[{"$f":"UmsätzeJahr","v":2012},{"$nulls":11},{"$f":"UmsätzeDezember[Versandkosten]-UmsätzeDezember[Versandgebühren]","v":{"v":0,"d":"0.00 €"}},{"$f":"UmsätzeDezember[Verkäufe Gewinn/Verlust]+UmsätzeDezember[Versand Gewinn/Verlust]","v":{"v":0,"d":"0.00 €"}}]
[{"$nulls":12},{"$f":"UmsätzeDezember[Versandkosten]-UmsätzeDezember[Versandgebühren]","v":{"v":0,"d":"0.00 €"}},{"$f":"UmsätzeDezember[Verkäufe Gewinn/Verlust]+UmsätzeDezember[Versand Gewinn/Verlust]","v":{"v":0,"d":"0.00 €"}}]
["Gesamt Gewinn/Verlust",{"$nulls":11},{"$f":"UmsätzeDezember[Versandkosten]-UmsätzeDezember[Versandgebühren]","v":{"v":0,"d":"0.00 €"}},{"$f":"UmsätzeDezember[Verkäufe Gewinn/Verlust]+UmsätzeDezember[Versand Gewinn/Verlust]","v":{"v":0,"d":"0.00 €"}}]
[{"$f":"UmsätzeDezember[[#Totals],[Gesamt Gewinn/Verlust]]","v":{"v":0,"d":"0.00 €"}},{"$nulls":11},{"$f":"UmsätzeDezember[Versandkosten]-UmsätzeDezember[Versandgebühren]","v":{"v":0,"d":"0.00 €"}},{"$f":"UmsätzeDezember[Verkäufe Gewinn/Verlust]+UmsätzeDezember[Versand Gewinn/Verlust]","v":{"v":0,"d":"0.00 €"}}]
[null,null,"Summe",{"$f":"\"Verkaufte Artikel:\"&SUBTOTAL(103,UmsätzeDezember[Artikelbeschreibung])","v":"Verkaufte Artikel:0"},{"$f":"SUBTOTAL(109,UmsätzeDezember[Kaufpreis])","v":{"v":0,"d":"0.00 €"}},{"$f":"SUBTOTAL(109,UmsätzeDezember[Verkaufspreis])","v":{"v":0,"d":"0.00 €"}},{"$f":"SUBTOTAL(109,UmsätzeDezember[Onlinegebühren])","v":{"v":0,"d":"0.00 €"}},{"$f":"SUBTOTAL(109,UmsätzeDezember[PayPal-Gebühren])","v":{"v":0,"d":"0.00 €"}},{"$f":"SUBTOTAL(109,UmsätzeDezember[Kreditkartengebühren])","v":{"v":0,"d":"0.00 €"}},{"$f":"SUBTOTAL(109,UmsätzeDezember[Versandkosten])","v":{"v":0,"d":"0.00 €"}},{"$f":"SUBTOTAL(109,UmsätzeDezember[Versandgebühren])","v":{"v":0,"d":"0.00 €"}},{"$f":"SUBTOTAL(109,UmsätzeDezember[Verkäufe Gewinn/Verlust])","v":{"v":0,"d":"0.00 €"}},{"$f":"SUBTOTAL(109,UmsätzeDezember[Versand Gewinn/Verlust])","v":{"v":0,"d":"0.00 €"}},{"$f":"SUBTOTAL(109,UmsätzeDezember[Gesamt Gewinn/Verlust])","v":{"v":0,"d":"0.00 €"}}]
["Gewinn/Verlust Trend"]

{"sheet":"Zusammenfassung Jahr bis heute","index":12,"n_rows":16,"n_cols":11,"rows_kept":16,"merged":[[3,0,4,0],[6,0,7,0]]}
["Jahr bis heute"]
["Zusammenfassung",null,"Gewinn/Verlust",{"$nulls":4},"Jahr bis heute – Gewinn/Verlust"]
["Jahr",{"$nulls":6},"Monat","Verkäufe Gewinn/Verlust","Versand Gewinn/Verlust","Gesamt Gewinn/Verlust"]
[{"$f":"UmsätzeJahr","v":2012},{"$nulls":6},"Januar",{"$f":"UmsätzeJanuar[[#Totals],[Verkäufe Gewinn/Verlust]]","v":{"v":79.5,"d":"79.50 €"}},{"$f":"UmsätzeJanuar[[#Totals],[Versand Gewinn/Verlust]]","v":{"v":9.5,"d":"9.50 €"}},{"$f":"UmsätzeJanuar[[#Totals],[Gesamt Gewinn/Verlust]]","v":{"v":89,"d":"89.00 €"}}]
[{"$nulls":7},"Februar",{"$f":"UmsätzeFebruar[[#Totals],[Verkäufe Gewinn/Verlust]]","v":{"v":212.3,"d":"212.30 €"}},{"$f":"UmsätzeFebruar[[#Totals],[Versand Gewinn/Verlust]]","v":{"v":12.3,"d":"12.30 €"}},{"$f":"UmsätzeFebruar[[#Totals],[Gesamt Gewinn/Verlust]]","v":{"v":224.60000000000002,"d":"224.60 €"}}]
["Monatlicher Verkaufstrend:",{"$nulls":6},"März",{"$f":"UmsätzeMärz[[#Totals],[Verkäufe Gewinn/Verlust]]","v":{"v":0,"d":"0.00 €"}},{"$f":"UmsätzeMärz[[#Totals],[Versand Gewinn/Verlust]]","v":{"v":0,"d":"0.00 €"}},{"$f":"UmsätzeMärz[[#Totals],[Gesamt Gewinn/Verlust]]","v":{"v":0,"d":"0.00 €"}}]
[{"$nulls":7},"April",{"$f":"UmsätzeApril[[#Totals],[Verkäufe Gewinn/Verlust]]","v":{"v":0,"d":"0.00 €"}},{"$f":"UmsätzeApril[[#Totals],[Versand Gewinn/Verlust]]","v":{"v":0,"d":"0.00 €"}},{"$f":"UmsätzeApril[[#Totals],[Gesamt Gewinn/Verlust]]","v":{"v":0,"d":"0.00 €"}}]
[{"$nulls":7},"Mai",{"$f":"UmsätzeMai[[#Totals],[Verkäufe Gewinn/Verlust]]","v":{"v":0,"d":"0.00 €"}},{"$f":"UmsätzeMai[[#Totals],[Versand Gewinn/Verlust]]","v":{"v":0,"d":"0.00 €"}},{"$f":"UmsätzeMai[[#Totals],[Gesamt Gewinn/Verlust]]","v":{"v":0,"d":"0.00 €"}}]
[{"$nulls":7},"Juni",{"$f":"UmsätzeJuni[[#Totals],[Verkäufe Gewinn/Verlust]]","v":{"v":0,"d":"0.00 €"}},{"$f":"UmsätzeJuni[[#Totals],[Versand Gewinn/Verlust]]","v":{"v":0,"d":"0.00 €"}},{"$f":"UmsätzeJuni[[#Totals],[Gesamt Gewinn/Verlust]]","v":{"v":0,"d":"0.00 €"}}]
[{"$nulls":7},"Juli",{"$f":"UmsätzeJuli[[#Totals],[Verkäufe Gewinn/Verlust]]","v":{"v":0,"d":"0.00 €"}},{"$f":"UmsätzeJuli[[#Totals],[Versand Gewinn/Verlust]]","v":{"v":0,"d":"0.00 €"}},{"$f":"UmsätzeJuli[[#Totals],[Gesamt Gewinn/Verlust]]","v":{"v":0,"d":"0.00 €"}}]
[{"$nulls":7},"August",{"$f":"UmsätzeAugust[[#Totals],[Verkäufe Gewinn/Verlust]]","v":{"v":0,"d":"0.00 €"}},{"$f":"UmsätzeAugust[[#Totals],[Versand Gewinn/Verlust]]","v":{"v":0,"d":"0.00 €"}},{"$f":"UmsätzeAugust[[#Totals],[Gesamt Gewinn/Verlust]]","v":{"v":0,"d":"0.00 €"}}]
[{"$nulls":7},"September",{"$f":"UmsätzeSeptember[[#Totals],[Verkäufe Gewinn/Verlust]]","v":{"v":0,"d":"0.00 €"}},{"$f":"UmsätzeSeptember[[#Totals],[Versand Gewinn/Verlust]]","v":{"v":0,"d":"0.00 €"}},{"$f":"UmsätzeSeptember[[#Totals],[Gesamt Gewinn/Verlust]]","v":{"v":0,"d":"0.00 €"}}]
[{"$nulls":7},"Oktober",{"$f":"UmsätzeOktober[[#Totals],[Verkäufe Gewinn/Verlust]]","v":{"v":0,"d":"0.00 €"}},{"$f":"UmsätzeOktober[[#Totals],[Versand Gewinn/Verlust]]","v":{"v":0,"d":"0.00 €"}},{"$f":"UmsätzeOktober[[#Totals],[Gesamt Gewinn/Verlust]]","v":{"v":0,"d":"0.00 €"}}]
[{"$nulls":7},"November",{"$f":"UmsätzeNovember[[#Totals],[Verkäufe Gewinn/Verlust]]","v":{"v":0,"d":"0.00 €"}},{"$f":"UmsätzeNovember[[#Totals],[Versand Gewinn/Verlust]]","v":{"v":0,"d":"0.00 €"}},{"$f":"UmsätzeNovember[[#Totals],[Gesamt Gewinn/Verlust]]","v":{"v":0,"d":"0.00 €"}}]
[{"$nulls":7},"Dezember",{"$f":"UmsätzeDezember[[#Totals],[Verkäufe Gewinn/Verlust]]","v":{"v":0,"d":"0.00 €"}},{"$f":"UmsätzeDezember[[#Totals],[Versand Gewinn/Verlust]]","v":{"v":0,"d":"0.00 €"}},{"$f":"UmsätzeDezember[[#Totals],[Gesamt Gewinn/Verlust]]","v":{"v":0,"d":"0.00 €"}}]
[{"$nulls":7},"Summen",{"$f":"SUBTOTAL(109,ZusammenfassungJahrBisHeute[Verkäufe Gewinn/Verlust])","v":{"v":291.8,"d":"291.80 €"}},{"$f":"SUBTOTAL(109,ZusammenfassungJahrBisHeute[Versand Gewinn/Verlust])","v":{"v":21.8,"d":"21.80 €"}},{"$f":"SUBTOTAL(109,ZusammenfassungJahrBisHeute[Gesamt Gewinn/Verlust])","v":{"v":313.6,"d":"313.60 €"}}]